[Event "Late-Titled-Tuesday-Blitz-March-26-2024"]
[Site "Chess.com"]
[Date "2024.03.26"]
[Round "3"]
[White "only_strong_moves"]
[Black "KingCrusher275"]
[Result "0-1"]
[WhiteElo "2677"]
[BlackElo "2485"]
[TimeControl "180+1"]
[EndTime "14:31:47 PDT"]
[Termination "KingCrusher275 won by checkmate"]

1. Nc3 {[%clk 0:03:00.9]} 1... e5 {[%clk 0:02:57.7]} 2. Nf3 {[%clk 0:02:57.9]}
2... Nc6 {[%clk 0:02:55.5]} 3. d4 {[%clk 0:02:58.1]} 3... exd4 {[%clk
0:02:44.2]} 4. Nxd4 {[%clk 0:02:59]} 4... Nf6 {[%clk 0:02:39.1]} 5. Bg5 {[%clk
0:02:49.9]} 5... d6 {[%clk 0:02:21.8]} 6. e3 {[%clk 0:02:45.5]} 6... Be7 {[%clk
0:02:20.9]} 7. Be2 {[%clk 0:02:40.8]} 7... O-O {[%clk 0:02:19.7]} 8. O-O {[%clk
0:02:39.1]} 8... Nxd4 {[%clk 0:02:14.8]} 9. Qxd4 {[%clk 0:02:37.1]} 9... Bf5
{[%clk 0:02:12]} 10. e4 {[%clk 0:02:31.8]} 10... Be6 {[%clk 0:02:06.8]} 11. Rad1
{[%clk 0:02:31.9]} 11... h6 {[%clk 0:02:03.7]} 12. Bf4 {[%clk 0:02:22.6]} 12...
Re8 {[%clk 0:01:41.7]} 13. h3 {[%clk 0:02:20.1]} 13... Qd7 {[%clk 0:01:34]} 14.
Rfe1 {[%clk 0:02:17.4]} 14... a6 {[%clk 0:01:30]} 15. Bf1 {[%clk 0:02:17.1]}
15... Rad8 {[%clk 0:01:25.8]} 16. Qe3 {[%clk 0:02:08.7]} 16... Qc6 {[%clk
0:01:22.6]} 17. Qf3 {[%clk 0:01:57.3]} 17... Bf8 {[%clk 0:01:08.1]} 18. Bd3
{[%clk 0:01:49.7]} 18... Nd7 {[%clk 0:00:59.2]} 19. Qg3 {[%clk 0:01:47.7]} 19...
Kh8 {[%clk 0:00:54.7]} 20. Ne2 {[%clk 0:01:35.5]} 20... Qb6 {[%clk 0:00:44.3]}
21. b3 {[%clk 0:01:24.3]} 21... Ne5 {[%clk 0:00:39.4]} 22. Be3 {[%clk
0:01:20.8]} 22... Qa5 {[%clk 0:00:36.4]} 23. Bd2 {[%clk 0:01:13.4]} 23... Qb6
{[%clk 0:00:31.4]} 24. Bc3 {[%clk 0:01:11.1]} 24... Nxd3 {[%clk 0:00:24.3]} 25.
Rxd3 {[%clk 0:01:12]} 25... Kh7 {[%clk 0:00:24.2]} 26. Nf4 {[%clk 0:01:09.8]}
26... Qc5 {[%clk 0:00:21.2]} 27. Re2 {[%clk 0:01:00]} 27... c6 {[%clk
0:00:16.7]} 28. Bd4 {[%clk 0:00:59.6]} 28... Qa5 {[%clk 0:00:13.3]} 29. c4
{[%clk 0:00:56.5]} 29... Bc8 {[%clk 0:00:11.4]} 30. Bc3 {[%clk 0:00:53.6]} 30...
Qc7 {[%clk 0:00:10.7]} 31. Nh5 {[%clk 0:00:53.1]} 31... f6 {[%clk 0:00:09.2]}
32. Bxf6 {[%clk 0:00:51.3]} 32... Qf7 {[%clk 0:00:08.1]} 33. Bxd8 {[%clk
0:00:43.3]} 33... Qxh5 {[%clk 0:00:07.3]} 34. Red2 {[%clk 0:00:42.2]} 34... Rxd8
{[%clk 0:00:07.5]} 35. e5 {[%clk 0:00:42.5]} 35... d5 {[%clk 0:00:05.2]} 36.
cxd5 {[%clk 0:00:43.4]} 36... cxd5 {[%clk 0:00:05.5]} 37. Rxd5 {[%clk
0:00:44.3]} 37... Rxd5 {[%clk 0:00:05.5]} 38. Rxd5 {[%clk 0:00:45.2]} 38... Be6
{[%clk 0:00:05.8]} 39. Rd8 {[%clk 0:00:42.1]} 39... Qf7 {[%clk 0:00:06.1]} 40.
Qd3+ {[%clk 0:00:36.8]} 40... Bf5 {[%clk 0:00:05.5]} 41. Qd4 {[%clk 0:00:34.2]}
41... Be7 {[%clk 0:00:05]} 42. Rb8 {[%clk 0:00:31.6]} 42... Qg6 {[%clk
0:00:05.1]} 43. Rxb7 {[%clk 0:00:25]} 43... Be4 {[%clk 0:00:05.5]} 44. Qxe4
{[%clk 0:00:15.7]} 44... Qxe4 {[%clk 0:00:05.1]} 45. Rxe7 {[%clk 0:00:16.6]}
45... Qb1+ {[%clk 0:00:05.3]} 46. Kh2 {[%clk 0:00:13.8]} 46... Qxa2 {[%clk
0:00:05.9]} 47. Rb7 {[%clk 0:00:13.2]} 47... Qe2 {[%clk 0:00:04.7]} 48. f4
{[%clk 0:00:13.3]} 48... Qe4 {[%clk 0:00:05.2]} 49. Rf7 {[%clk 0:00:12.3]} 49...
Kg8 {[%clk 0:00:04.7]} 50. Re7 {[%clk 0:00:10.8]} 50... Qxf4+ {[%clk 0:00:05]}
51. Kh1 {[%clk 0:00:10.6]} 51... Qc1+ {[%clk 0:00:05.4]} 52. Kh2 {[%clk
0:00:10.8]} 52... Qc5 {[%clk 0:00:06.1]} 53. Re6 {[%clk 0:00:10.5]} 53... Qd5
{[%clk 0:00:06.1]} 54. Rxa6 {[%clk 0:00:10.2]} 54... Qxe5+ {[%clk 0:00:06.3]}
55. Kh1 {[%clk 0:00:11.1]} 55... Qb5 {[%clk 0:00:06.2]} 56. Ra8+ {[%clk
0:00:10.4]} 56... Kh7 {[%clk 0:00:06]} 57. Rd8 {[%clk 0:00:11.3]} 57... Qxb3
{[%clk 0:00:06.3]} 58. Kh2 {[%clk 0:00:12.2]} 58... Qb7 {[%clk 0:00:06.4]} 59.
Rd3 {[%clk 0:00:12.6]} 59... Qc7+ {[%clk 0:00:06.7]} 60. Kh1 {[%clk 0:00:12.7]}
60... Qc1+ {[%clk 0:00:07.4]} 61. Kh2 {[%clk 0:00:12.6]} 61... Qf4+ {[%clk
0:00:08.1]} 62. Kg1 {[%clk 0:00:11.7]} 62... Qe4 {[%clk 0:00:08.8]} 63. Rf3
{[%clk 0:00:12.1]} 63... g5 {[%clk 0:00:07.6]} 64. Kf2 {[%clk 0:00:12.8]} 64...
Kg6 {[%clk 0:00:07.7]} 65. Kg3 {[%clk 0:00:12.8]} 65... h5 {[%clk 0:00:07.9]}
66. Kh2 {[%clk 0:00:12.8]} 66... Qe5+ {[%clk 0:00:08.4]} 67. Kg1 {[%clk
0:00:12.6]} 67... Qe1+ {[%clk 0:00:08.6]} 68. Kh2 {[%clk 0:00:12.9]} 68... Qe2
{[%clk 0:00:07.9]} 69. Ra3 {[%clk 0:00:11.8]} 69... Kf5 {[%clk 0:00:06.2]} 70.
Ra5+ {[%clk 0:00:11.4]} 70... Kf6 {[%clk 0:00:06.4]} 71. Ra3 {[%clk 0:00:09.2]}
71... Qb2 {[%clk 0:00:06.1]} 72. Rf3+ {[%clk 0:00:09.7]} 72... Kg6 {[%clk
0:00:06]} 73. Kg3 {[%clk 0:00:10.6]} 73... Qb8+ {[%clk 0:00:05.1]} 74. Kf2
{[%clk 0:00:10.5]} 74... Qb2+ {[%clk 0:00:04.5]} 75. Kg3 {[%clk 0:00:10.7]}
75... Qe5+ {[%clk 0:00:04.9]} 76. Kf2 {[%clk 0:00:10.6]} 76... g4 {[%clk
0:00:05.4]} 77. hxg4 {[%clk 0:00:10.6]} 77... hxg4 {[%clk 0:00:05.8]} 78. Rd3
{[%clk 0:00:10.8]} 78... Qb2+ {[%clk 0:00:05.4]} 79. Kg3 {[%clk 0:00:10.8]}
79... Qe5+ {[%clk 0:00:04.9]} 80. Kf2 {[%clk 0:00:10.8]} 80... Qf5+ {[%clk
0:00:05.1]} 81. Ke2 {[%clk 0:00:10.6]} 81... Qe4+ {[%clk 0:00:05.4]} 82. Re3
{[%clk 0:00:11.1]} 82... Qxg2+ {[%clk 0:00:06]} 83. Kd3 {[%clk 0:00:11.8]} 83...
Kg5 {[%clk 0:00:06.4]} 84. Re4 {[%clk 0:00:12.6]} 84... Qf3+ {[%clk 0:00:06.2]}
85. Kd4 {[%clk 0:00:13.5]} 85... Qxe4+ {[%clk 0:00:06.3]} 86. Kxe4 {[%clk
0:00:13.7]} 86... Kh4 {[%clk 0:00:07]} 87. Ke3 {[%clk 0:00:14.6]} 87... Kh3
{[%clk 0:00:07.6]} 88. Kf2 {[%clk 0:00:15]} 88... Kh2 {[%clk 0:00:08.2]} 89. Kf1
{[%clk 0:00:15.2]} 89... g3 {[%clk 0:00:09.1]} 90. Ke2 {[%clk 0:00:15.8]} 90...
g2 {[%clk 0:00:10]} 91. Kf3 {[%clk 0:00:16.7]} 91... g1=Q {[%clk 0:00:10.9]} 92.
Ke4 {[%clk 0:00:17.6]} 92... Qg3 {[%clk 0:00:11]} 93. Kf5 {[%clk 0:00:18.5]}
93... Kg2 {[%clk 0:00:11.4]} 94. Ke6 {[%clk 0:00:19.4]} 94... Kf3 {[%clk
0:00:12.1]} 95. Kd7 {[%clk 0:00:20.3]} 95... Qg6 {[%clk 0:00:12.4]} 96. Kc8
{[%clk 0:00:20.7]} 96... Ke4 {[%clk 0:00:13.1]} 97. Kb8 {[%clk 0:00:21.6]} 97...
Kd5 {[%clk 0:00:13.7]} 98. Kc8 {[%clk 0:00:22.5]} 98... Qg7 {[%clk 0:00:14.2]}
99. Kb8 {[%clk 0:00:23.4]} 99... Kc6 {[%clk 0:00:14.6]} 100. Kc8 {[%clk
0:00:24.3]} 100... Qg8# {[%clk 0:00:11.4]} 0-1

[Event "Late-Titled-Tuesday-Blitz-March-26-2024"]
[Site "Chess.com"]
[Date "2024.03.26"]
[Round "3"]
[White "MPCandelario"]
[Black "db-banana"]
[Result "1-0"]
[WhiteElo "2675"]
[BlackElo "2450"]
[TimeControl "180+1"]
[EndTime "14:32:18 PDT"]
[Termination "MPCandelario won by resignation"]

1. e4 {[%clk 0:03:00.9]} 1... c5 {[%clk 0:03:00.1]} 2. Nf3 {[%clk 0:03:00.2]}
2... Nc6 {[%clk 0:02:59.5]} 3. d4 {[%clk 0:03:00.2]} 3... cxd4 {[%clk 0:03:00]}
4. Nxd4 {[%clk 0:03:01.1]} 4... Nf6 {[%clk 0:02:59.7]} 5. Nxc6 {[%clk
0:03:00.9]} 5... bxc6 {[%clk 0:02:57.7]} 6. Bd3 {[%clk 0:03:01.4]} 6... d6
{[%clk 0:02:50.5]} 7. O-O {[%clk 0:03:00.2]} 7... e5 {[%clk 0:02:51]} 8. Kh1
{[%clk 0:02:51.1]} 8... Be7 {[%clk 0:02:48.9]} 9. f4 {[%clk 0:02:43.2]} 9... O-O
{[%clk 0:02:49]} 10. Nc3 {[%clk 0:02:40]} 10... Re8 {[%clk 0:02:42.2]} 11. fxe5
{[%clk 0:02:32.7]} 11... dxe5 {[%clk 0:02:41.1]} 12. Be3 {[%clk 0:02:32.3]}
12... Ng4 {[%clk 0:02:20.2]} 13. Bg1 {[%clk 0:02:31.3]} 13... Bg5 {[%clk
0:02:18.5]} 14. Bc4 {[%clk 0:02:20.3]} 14... Nh6 {[%clk 0:01:55.7]} 15. h3
{[%clk 0:01:54]} 15... Be6 {[%clk 0:01:52.9]} 16. Qe2 {[%clk 0:01:38.7]} 16...
Bf4 {[%clk 0:01:46]} 17. Rad1 {[%clk 0:01:26.4]} 17... Qg5 {[%clk 0:01:34.8]}
18. Bxe6 {[%clk 0:01:12.6]} 18... Rxe6 {[%clk 0:01:31.6]} 19. Rd7 {[%clk
0:01:09.9]} 19... Ng4 {[%clk 0:01:05]} 20. Rfd1 {[%clk 0:01:06.4]} 20... Rf8
{[%clk 0:00:56.6]} 21. R1d3 {[%clk 0:00:58.9]} 21... Rh6 {[%clk 0:00:48.7]} 22.
R7d6 {[%clk 0:00:51.9]} 22... Nf6 {[%clk 0:00:33.7]} 23. Qf3 {[%clk 0:00:43.9]}
23... Nh5 {[%clk 0:00:29.2]} 24. Ne2 {[%clk 0:00:43.7]} 24... Rxd6 {[%clk
0:00:26.5]} 25. Rxd6 {[%clk 0:00:44.6]} 25... g6 {[%clk 0:00:22.7]} 26. Qd3
{[%clk 0:00:26.4]} 26... Kg7 {[%clk 0:00:19.9]} 27. Rxc6 {[%clk 0:00:26.2]}
27... Rd8 {[%clk 0:00:11]} 28. Rd6 {[%clk 0:00:26.5]} 28... Rxd6 {[%clk
0:00:11.1]} 29. Qxd6 {[%clk 0:00:27.3]} 29... Be3 {[%clk 0:00:06.7]} 30. Qd3
{[%clk 0:00:20.6]} 30... Bxg1 {[%clk 0:00:06.2]} 31. Kxg1 {[%clk 0:00:21.5]}
31... Qe7 {[%clk 0:00:05.1]} 32. c3 {[%clk 0:00:18.9]} 32... Qc5+ {[%clk
0:00:04.1]} 33. Kh2 {[%clk 0:00:19.5]} 33... Qf2 {[%clk 0:00:03.9]} 34. Qf3
{[%clk 0:00:19.4]} 34... Qe1 {[%clk 0:00:03.3]} 35. b4 {[%clk 0:00:19.2]} 35...
Qb1 {[%clk 0:00:02.7]} 36. a4 {[%clk 0:00:19.3]} 36... Nf6 {[%clk 0:00:03.3]}
37. Ng3 {[%clk 0:00:18.1]} 37... Qb3 {[%clk 0:00:03.5]} 38. a5 {[%clk
0:00:18.2]} 38... Qc4 {[%clk 0:00:02]} 39. Qe3 {[%clk 0:00:18]} 39... h5 {[%clk
0:00:02.1]} 40. Qe2 {[%clk 0:00:15.6]} 40... Qxc3 {[%clk 0:00:01.8]} 41. b5
{[%clk 0:00:16.2]} 41... Qd4 {[%clk 0:00:02.3]} 42. a6 {[%clk 0:00:15.7]} 42...
h4 {[%clk 0:00:02.8]} 43. Nf1 {[%clk 0:00:14.9]} 43... Nxe4 {[%clk 0:00:03.4]}
44. Qe3 {[%clk 0:00:14.3]} 44... Qxe3 {[%clk 0:00:03.5]} 45. Nxe3 {[%clk
0:00:15.2]} 45... Nc5 {[%clk 0:00:02.5]} 46. b6 {[%clk 0:00:14.7]} 46... Nxa6
{[%clk 0:00:01.9]} 47. bxa7 {[%clk 0:00:14.6]} 47... Nc7 {[%clk 0:00:02.1]} 48.
Nc4 {[%clk 0:00:11.5]} 48... Na8 {[%clk 0:00:03]} 49. Nxe5 {[%clk 0:00:11.4]}
49... Kf6 {[%clk 0:00:03.6]} 50. Nf3 {[%clk 0:00:09.9]} 50... Ke6 {[%clk
0:00:02]} 51. Nxh4 {[%clk 0:00:08.8]} 51... Kd7 {[%clk 0:00:02.6]} 52. Nf3
{[%clk 0:00:09.2]} 52... Kc7 {[%clk 0:00:03.1]} 53. Ne5 {[%clk 0:00:09.6]} 53...
f6 {[%clk 0:00:01.6]} 54. Nxg6 {[%clk 0:00:09.6]} 54... Kb7 {[%clk 0:00:02.3]}
55. Ne7 {[%clk 0:00:09]} 55... Nb6 {[%clk 0:00:02]} 56. Ng8 {[%clk 0:00:08.8]}
56... Nd7 {[%clk 0:00:02.3]} 57. Kg3 {[%clk 0:00:09]} 57... Kxa7 {[%clk
0:00:02.8]} 58. Kf4 {[%clk 0:00:09.6]} 58... Kb7 {[%clk 0:00:03.5]} 59. Kf5
{[%clk 0:00:10.2]} 59... Kc7 {[%clk 0:00:02.5]} 60. Nxf6 {[%clk 0:00:10.8]}
60... Nc5 {[%clk 0:00:02.6]} 61. h4 {[%clk 0:00:10.7]} 61... Kd8 {[%clk
0:00:03.1]} 62. h5 {[%clk 0:00:10.8]} 62... Ke7 {[%clk 0:00:03.8]} 63. g4 {[%clk
0:00:10.2]} 63... Kf7 {[%clk 0:00:04.5]} 64. g5 {[%clk 0:00:10.8]} 64... Nb3
{[%clk 0:00:04.9]} 65. Ng4 {[%clk 0:00:09.4]} 65... Nd4+ {[%clk 0:00:04.7]} 66.
Kf4 {[%clk 0:00:09.8]} 66... Ne6+ {[%clk 0:00:04.9]} 67. Kf5 {[%clk 0:00:09.7]}
67... Nd4+ {[%clk 0:00:05.4]} 68. Ke4 {[%clk 0:00:10.1]} 68... Ne6 {[%clk
0:00:06]} 69. Ne5+ {[%clk 0:00:10.2]} 69... Kg7 {[%clk 0:00:06.1]} 70. h6+
{[%clk 0:00:10.3]} 70... Kh7 {[%clk 0:00:06.6]} 71. Kf5 {[%clk 0:00:10.9]} 71...
Nd4+ {[%clk 0:00:07.2]} 72. Kf6 {[%clk 0:00:11.5]} 72... Ne2 {[%clk 0:00:06.4]}
73. Nf7 {[%clk 0:00:11.3]} 73... Nf4 {[%clk 0:00:05.4]} 74. Ne5 {[%clk
0:00:11.4]} 74... Nd5+ {[%clk 0:00:04.9]} 75. Ke6 {[%clk 0:00:11.9]} 75... Nf4+
{[%clk 0:00:05.2]} 76. Kf5 {[%clk 0:00:12.4]} 76... Nd5 {[%clk 0:00:05.1]} 77.
Ng4 {[%clk 0:00:12.4]} 77... Ne7+ {[%clk 0:00:05.1]} 78. Kf6 {[%clk 0:00:12.7]}
78... Nd5+ {[%clk 0:00:05.6]} 79. Kf7 {[%clk 0:00:12.2]} 79... Nf4 {[%clk
0:00:05.2]} 80. Nf6+ {[%clk 0:00:12.2]} 80... Kh8 {[%clk 0:00:05.3]} 81. Nh5
{[%clk 0:00:10.3]} 81... Nh3 {[%clk 0:00:04.9]} 82. g6 {[%clk 0:00:09]} 82...
Ng5+ {[%clk 0:00:03]} 83. Kf6 {[%clk 0:00:09.5]} 83... Ne4+ {[%clk 0:00:03]} 84.
Ke5 {[%clk 0:00:09.9]} 84... Ng5 {[%clk 0:00:02.4]} 85. Nf6 {[%clk 0:00:08.4]}
85... Nf7+ {[%clk 0:00:01.7]} 86. Kf4 {[%clk 0:00:03.2]} 86... Nxh6 {[%clk
0:00:02.6]} 87. Kg5 {[%clk 0:00:03.8]} 87... Kg7 {[%clk 0:00:03.4]} 88. Nh5+
{[%clk 0:00:03.7]} 88... Kg8 {[%clk 0:00:01.8]} 89. Kxh6 {[%clk 0:00:04.6]}
89... Kh8 {[%clk 0:00:02.7]} 90. g7+ {[%clk 0:00:04.7]} 90... Kg8 {[%clk
0:00:03.6]} 91. Nf6+ {[%clk 0:00:05.5]} 91... Kf7 {[%clk 0:00:04.3]} 92. g8=Q+
{[%clk 0:00:06.1]} 92... Kxf6 {[%clk 0:00:05.2]} 93. Qg7+ {[%clk 0:00:06.4]} 1-0

[Event "Late-Titled-Tuesday-Blitz-March-26-2024"]
[Site "Chess.com"]
[Date "2024.03.26"]
[Round "3"]
[White "jinbojinbo"]
[Black "Durarbayli"]
[Result "0-1"]
[WhiteElo "2640"]
[BlackElo "2935"]
[TimeControl "180+1"]
[EndTime "14:32:42 PDT"]
[Termination "Durarbayli won by resignation"]

1. e4 {[%clk 0:03:00.9]} 1... e5 {[%clk 0:02:56.4]} 2. Nf3 {[%clk 0:03:00.8]}
2... Nc6 {[%clk 0:02:56.1]} 3. Bb5 {[%clk 0:03:01.4]} 3... a6 {[%clk 0:02:55.8]}
4. Ba4 {[%clk 0:03:01.4]} 4... Nf6 {[%clk 0:02:56]} 5. O-O {[%clk 0:03:01.6]}
5... Be7 {[%clk 0:02:55.5]} 6. Re1 {[%clk 0:03:00.8]} 6... b5 {[%clk 0:02:55.4]}
7. Bb3 {[%clk 0:03:01.1]} 7... O-O {[%clk 0:02:56]} 8. c3 {[%clk 0:03:01.4]}
8... d5 {[%clk 0:02:52.2]} 9. exd5 {[%clk 0:03:01.1]} 9... Nxd5 {[%clk
0:02:53.1]} 10. Nxe5 {[%clk 0:03:00.8]} 10... Nxe5 {[%clk 0:02:53.8]} 11. Rxe5
{[%clk 0:03:01.1]} 11... c6 {[%clk 0:02:53.7]} 12. d3 {[%clk 0:03:01.3]} 12...
Bd6 {[%clk 0:02:53.7]} 13. Re1 {[%clk 0:03:01.6]} 13... Qh4 {[%clk 0:02:52.9]}
14. g3 {[%clk 0:02:56.5]} 14... Qh3 {[%clk 0:02:52.7]} 15. Re4 {[%clk
0:02:54.8]} 15... Nf6 {[%clk 0:02:50.9]} 16. Rh4 {[%clk 0:02:20.2]} 16... Qf5
{[%clk 0:02:49.1]} 17. Nd2 {[%clk 0:02:16.6]} 17... Ng4 {[%clk 0:02:44.6]} 18.
Ne4 {[%clk 0:01:49.2]} 18... Be7 {[%clk 0:02:41.4]} 19. h3 {[%clk 0:01:48.5]}
19... Ne5 {[%clk 0:02:18.6]} 20. Rf4 {[%clk 0:01:40.8]} 20... Qxh3 {[%clk
0:02:13.1]} 21. Qf1 {[%clk 0:01:07.1]} 21... Qxf1+ {[%clk 0:02:04.9]} 22. Kxf1
{[%clk 0:01:08]} 22... Nxd3 {[%clk 0:02:05.3]} 23. Rf3 {[%clk 0:01:08]} 23...
Bh3+ {[%clk 0:01:29.4]} 24. Kg1 {[%clk 0:01:07.3]} 24... Ne5 {[%clk 0:01:30]}
25. Re3 {[%clk 0:01:06.5]} 25... Rad8 {[%clk 0:01:12.1]} 26. Ng5 {[%clk
0:00:42.2]} 26... Bxg5 {[%clk 0:01:02.4]} 27. Rxe5 {[%clk 0:00:41.9]} 27... Bf6
{[%clk 0:01:02.3]} 28. Rc5 {[%clk 0:00:32]} 28... Rc8 {[%clk 0:00:53.7]} 29. Be3
{[%clk 0:00:28.3]} 29... Rfd8 {[%clk 0:00:47.5]} 30. a4 {[%clk 0:00:26.8]} 30...
Be7 {[%clk 0:00:41.1]} 31. Re5 {[%clk 0:00:25.9]} 31... Bd6 {[%clk 0:00:38.8]}
32. Rh5 {[%clk 0:00:23.8]} 32... Bg4 {[%clk 0:00:36.9]} 33. Rg5 {[%clk
0:00:22.7]} 33... h5 {[%clk 0:00:07.9]} 34. Bd4 {[%clk 0:00:22.2]} 34... Bf8
{[%clk 0:00:05.8]} 35. axb5 {[%clk 0:00:21.6]} 35... axb5 {[%clk 0:00:06.7]} 36.
Ra7 {[%clk 0:00:20]} 36... Rd7 {[%clk 0:00:04.8]} 37. Rxd7 {[%clk 0:00:08.4]}
37... Bxd7 {[%clk 0:00:05.7]} 38. Rxh5 {[%clk 0:00:08.6]} 38... c5 {[%clk
0:00:06]} 39. Be3 {[%clk 0:00:07.7]} 39... g6 {[%clk 0:00:06.4]} 40. Rh4 {[%clk
0:00:05]} 40... Bf5 {[%clk 0:00:05]} 41. g4 {[%clk 0:00:03.8]} 41... Be7 {[%clk
0:00:04.9]} 42. Rh2 {[%clk 0:00:02.7]} 42... Bxg4 {[%clk 0:00:04.6]} 43. Rg2
{[%clk 0:00:03.2]} 43... Bf5 {[%clk 0:00:05.2]} 44. Bg5 {[%clk 0:00:02.6]} 44...
Bxg5 {[%clk 0:00:04.9]} 45. Rxg5 {[%clk 0:00:03.5]} 45... c4 {[%clk 0:00:05.6]}
46. Bd1 {[%clk 0:00:03.3]} 46... Rd8 {[%clk 0:00:06.2]} 47. Bf3 {[%clk
0:00:02.7]} 47... Rd2 {[%clk 0:00:06.5]} 48. Bc6 {[%clk 0:00:02.5]} 48... Rxb2
{[%clk 0:00:06.5]} 49. Rg3 {[%clk 0:00:02.4]} 49... Kg7 {[%clk 0:00:06.9]} 50.
Re3 {[%clk 0:00:02.8]} 50... Rb3 {[%clk 0:00:07.1]} 51. Re5 {[%clk 0:00:02.5]}
51... Rxc3 {[%clk 0:00:05.1]} 52. Bxb5 {[%clk 0:00:03.4]} 52... Rc1+ {[%clk
0:00:05.5]} 53. Kh2 {[%clk 0:00:03.9]} 53... c3 {[%clk 0:00:06.1]} 54. Rc5
{[%clk 0:00:04.4]} 54... c2 {[%clk 0:00:06.5]} 55. Ba4 {[%clk 0:00:05]} 55...
Ra1 {[%clk 0:00:05.1]} 56. Bxc2 {[%clk 0:00:05.2]} 56... Rc1 {[%clk 0:00:05.7]}
57. Rxf5 {[%clk 0:00:05.6]} 57... gxf5 {[%clk 0:00:04.3]} 58. Bxf5 {[%clk
0:00:06.5]} 58... Kf6 {[%clk 0:00:04.6]} 59. Bd3 {[%clk 0:00:05.1]} 59... Kg5
{[%clk 0:00:05]} 60. Be2 {[%clk 0:00:04.4]} 60... Rc3 {[%clk 0:00:05.6]} 61. Kg2
{[%clk 0:00:04.3]} 61... Kf4 {[%clk 0:00:06]} 62. Bh5 {[%clk 0:00:04.3]} 62...
f6 {[%clk 0:00:06.9]} 63. Bg6 {[%clk 0:00:04.3]} 63... Ke5 {[%clk 0:00:05.9]}
64. Bh7 {[%clk 0:00:04.2]} 64... Kd6 {[%clk 0:00:06.8]} 65. Bg6 {[%clk
0:00:04.5]} 65... Kc5 {[%clk 0:00:07.7]} 66. Bf5 {[%clk 0:00:04.7]} 66... Kb4
{[%clk 0:00:08.6]} 67. Bg6 {[%clk 0:00:04.8]} 67... Ka3 {[%clk 0:00:09.5]} 68.
Bf5 {[%clk 0:00:05.1]} 68... Kb2 {[%clk 0:00:10.4]} 69. Bg6 {[%clk 0:00:05.2]}
69... Kc1 {[%clk 0:00:11.3]} 70. Bf5 {[%clk 0:00:04.7]} 70... Kd2 {[%clk
0:00:12.2]} 71. Bg6 {[%clk 0:00:03.4]} 71... Ke1 {[%clk 0:00:13.1]} 72. f4
{[%clk 0:00:02.9]} 72... Kd2 {[%clk 0:00:12.8]} 73. Kf2 {[%clk 0:00:02.8]} 73...
Kc1 {[%clk 0:00:13.4]} 74. Be4 {[%clk 0:00:01.9]} 74... Kb2 {[%clk 0:00:14.3]}
75. Ke2 {[%clk 0:00:02.4]} 75... Ka3 {[%clk 0:00:14.5]} 76. Bd3 {[%clk
0:00:03.1]} 76... Kb4 {[%clk 0:00:15.4]} 77. Ke3 {[%clk 0:00:03.6]} 77... Kc5
{[%clk 0:00:14.8]} 78. Ke4 {[%clk 0:00:04]} 78... Kd6 {[%clk 0:00:15.2]} 79. Be2
{[%clk 0:00:03.6]} 79... Rc5 {[%clk 0:00:14.7]} 80. Bg4 {[%clk 0:00:03.2]} 80...
Ra5 {[%clk 0:00:15.6]} 81. Bc8 {[%clk 0:00:02.9]} 81... Ke7 {[%clk 0:00:16]} 82.
Bb7 {[%clk 0:00:02.7]} 82... Kf7 {[%clk 0:00:16.5]} 83. Bc8 {[%clk 0:00:02.8]}
83... Rc5 {[%clk 0:00:15.8]} 84. Bd7 {[%clk 0:00:03.2]} 84... Kg6 {[%clk
0:00:15.8]} 85. Be6 {[%clk 0:00:03.2]} 85... Kh5 {[%clk 0:00:13.6]} 86. Bd7
{[%clk 0:00:03.2]} 86... Kh4 {[%clk 0:00:13.9]} 87. Be6 {[%clk 0:00:03]} 87...
Kg3 {[%clk 0:00:13.9]} 88. Bf7 {[%clk 0:00:03.2]} 88... Ra5 {[%clk 0:00:13.7]}
89. Bd5 {[%clk 0:00:02.1]} 89... Ra4+ {[%clk 0:00:13.6]} 90. Kf5 {[%clk
0:00:02.3]} 90... Rxf4+ {[%clk 0:00:14.5]} 91. Kg6 {[%clk 0:00:02.6]} 91... Kf2
{[%clk 0:00:14.4]} 92. Be6 {[%clk 0:00:02.8]} 92... Ke3 {[%clk 0:00:15.3]} 93.
Bf5 {[%clk 0:00:03.1]} 93... Rd4 {[%clk 0:00:09]} 94. Kxf6 {[%clk 0:00:04]}
94... Kf4 {[%clk 0:00:09.5]} 95. Be6 {[%clk 0:00:03.6]} 95... Rd6 {[%clk
0:00:09.9]} 96. Ke7 {[%clk 0:00:02.1]} 96... Ke5 {[%clk 0:00:10.8]} 97. Bf7
{[%clk 0:00:02]} 97... Rb6 {[%clk 0:00:11.5]} 98. Kf8 {[%clk 0:00:02.5]} 98...
Rb7 {[%clk 0:00:12.1]} 99. Kg8 {[%clk 0:00:02.5]} 99... Kf5 {[%clk 0:00:12.8]}
100. Bc4 {[%clk 0:00:02.8]} 100... Kf6 {[%clk 0:00:13.4]} 101. Kh8 {[%clk
0:00:03.3]} 101... Kg6 {[%clk 0:00:13.9]} 102. Bg8 {[%clk 0:00:03.8]} 102... Rc7
{[%clk 0:00:13.6]} 103. Bd5 {[%clk 0:00:04.3]} 103... Rc5 {[%clk 0:00:13.6]}
104. Be4+ {[%clk 0:00:04.4]} 104... Kf6 {[%clk 0:00:13.7]} 105. Bh7 {[%clk
0:00:05]} 105... Kf7 {[%clk 0:00:14.4]} 106. Bg8+ {[%clk 0:00:05.3]} 106... Kf8
{[%clk 0:00:15.3]} 107. Bh7 {[%clk 0:00:05.6]} 107... Rg5 {[%clk 0:00:15.9]}
108. Bd3 {[%clk 0:00:05.2]} 108... Rg3 {[%clk 0:00:16.8]} 109. Bh7 {[%clk
0:00:05.5]} 109... Rg2 {[%clk 0:00:16.8]} 110. Be4 {[%clk 0:00:05.9]} 110...
Rg8+ {[%clk 0:00:16.4]} 111. Kh7 {[%clk 0:00:05.6]} 111... Rg4 {[%clk
0:00:17.3]} 112. Bf5 {[%clk 0:00:05.7]} 112... Rg5 {[%clk 0:00:16.9]} 113. Bc2
{[%clk 0:00:06.2]} 113... Kf7 {[%clk 0:00:17.4]} 114. Kh8 {[%clk 0:00:06.6]}
114... Rc5 {[%clk 0:00:17.8]} 115. Bh7 {[%clk 0:00:06.9]} 115... Rc8+ {[%clk
0:00:17.6]} 116. Bg8+ {[%clk 0:00:05.2]} 116... Rxg8+ {[%clk 0:00:18.5]} 117.
Kh7 {[%clk 0:00:05.9]} 117... Rg6 {[%clk 0:00:18.1]} 0-1